fUST/lending_fUST_20260130
["ID","MTS","AMOUNT","RATE_DAILY","PERIOD"]
[403987814,1769703040444,-200.0,0.00018356,2]
[403987815,1769703040454,-168.0,0.00018428,2]
[403987816,1769703040608,-168.0,0.00018542,2]
[403987817,1769703040618,-1896.32290497,0.0001872,2]
[403987818,1769703040628,-168.0,0.00018752,2]
[403987819,1769703040637,-5000.0,0.00018768,2]
[403987820,1769703040652,-168.0,0.00018843,2]
[403987821,1769703040663,-303.10001603,0.000189,2]
[403987822,1769703040673,-303.10001603,0.000189,2]
[403987823,1769703040683,-251.95315776,0.00018904,2]
[403987824,1769703040693,-168.0,0.00018966,2]
[403987825,1769703040703,-168.0,0.00019041,2]
[403987826,1769703040712,-168.0,0.00019044,2]
[403987827,1769703040722,-303.10001603,0.00019089,2]
[403987828,1769703040731,-303.10001603,0.00019089,2]
[403987829,1769703040741,-846.9173,0.00019178,2]
[403987830,1769703040751,-846.9173,0.00019178,2]
[403987831,1769703040760,-508.1504,0.00019178,2]
[403987832,1769703040769,-846.9173,0.00019178,2]
[403987833,1769703040778,-508.1504,0.00019178,2]
[403987834,1769703040787,-846.9173,0.00019178,2]
[403987835,1769703040797,-846.9173,0.00019178,2]
[403987836,1769703040806,-200.0,0.00019178,2]
[403987837,1769703040815,-1270.376,0.00019178,2]
[403987838,1769703040825,-1270.376,0.00019178,2]
[403987839,1769703040838,-157.83,0.000192,2]
[403987840,1769703040847,-170.47,0.000192,2]
[403987841,1769703040858,-168.15,0.000192,2]
[403987842,1769703040867,-665.43,0.000192,2]
[403987843,1769703040878,-1890.6,0.000192,2]
[403987845,1769703040888,-168.0,0.00019204,2]
[403987846,1769703040901,-168.0,0.0001923,2]
[403987847,1769703040912,-303.10001603,0.00019278,2]
[403987848,1769703040922,-303.10001603,0.00019278,2]
[403987849,1769703040932,-168.0,0.00019312,2]
[403987850,1769703040941,-168.0,0.00019357,2]
[403987851,1769703040951,-1000.0,0.00019438,2]
[403987852,1769703040960,-1000.0,0.00019438,2]
[403987854,1769703040969,-579.0,0.00019438,2]
[403987855,1769703040978,-303.10001603,0.00019467,2]
[403987856,1769703040988,-303.10001603,0.00019467,2]
[403987857,1769703040997,-168.0,0.00019473,2]
[403987858,1769703041006,-168.0,0.00019522,2]
[403987859,1769703041015,-846.9173,0.00019589,3]
[403987860,1769703041026,-846.9173,0.00019589,3]
[403987862,1769703041036,-508.1504,0.00019589,3]
[403987863,1769703041046,-846.9173,0.00019589,3]
[403987864,1769703041056,-508.1504,0.00019589,3]
[403987865,1769703041065,-846.9173,0.00019589,3]
[403987866,1769703041074,-846.9173,0.00019589,3]
[403987867,1769703041083,-151.0,0.000196,2]
[403987868,1769703041092,-303.10001603,0.00019656,2]
[403987869,1769703041101,-303.10001603,0.00019656,2]
[403987871,1769703041111,-2150.0,0.00019789,2]
[403987872,1769703041120,-1369.0,0.00019789,2]
[403987873,1769703041130,-454.65002405,0.00019845,4]
[403987874,1769703041140,-454.65002405,0.00019845,4]
[403987875,1769703041150,-846.9173,0.0002,4]
[403987876,1769703041160,-846.9173,0.0002,4]
[403987877,1769703041169,-508.1504,0.0002,4]
[403987879,1769703041178,-336.5554,0.0002,4]
[403987880,1769703041188,-508.1504,0.0002,4]
[403987881,1769703041198,-538.7654,0.0002,4]
[403987882,1769703041208,-392.844,0.0002,4]
[403987883,1769703041217,-254.074,0.0002,4]
[403987884,1769703041227,-454.65002405,0.00020034,4]
[403987885,1769703041236,-606.20003206,0.00020034,4]
[403987887,1769703041245,-454.65002405,0.00020223,4]
[403987888,1769703041255,-454.65002405,0.00020412,4]
[403987889,1769703041264,-2170.50698,0.00020548,2]
[403987890,1769703041273,-454.65002405,0.00020601,4]
[403987891,1769703041283,-151.0,0.000209,3]
[403987892,1769703041292,-1000.0,0.00021381,10]
[403987893,1769703041301,-1000.0,0.00021381,10]
[403987895,1769703041310,-1000.0,0.00021381,10]
[403987896,1769703041320,-151.0,0.000218,3]
[403987897,1769703041329,-150.49482106,0.00021918,2]
[403987898,1769703041338,-2212.7961759,0.00022147,2]
[403987899,1769703041347,-2150.0,0.00022789,2]
[403987900,1769703041356,-1369.0,0.00022789,2]
[403987901,1769703041365,-1890.6,0.000228,2]
[403987902,1769703041374,-164.0,0.00022822,8]
[403987904,1769703041384,-305.13,0.00023,7]
[403987905,1769703041393,-153.98,0.00023,2]
[403987906,1769703041404,-665.43,0.00023,14]
[403987907,1769703041413,-1041.66666667,0.00023,3]
[403987908,1769703041423,-160.0,0.00023,3]
[403987909,1769703041432,-1000.0,0.0002352,10]
[403987910,1769703041443,-1000.0,0.0002352,10]
[403987912,1769703041453,-1000.0,0.0002352,10]
[403987913,1769703041463,-715.0,0.0002352,10]
[403987914,1769703041472,-2000.0,0.00023662,7]
[403987915,1769703041482,-880.632,0.00023735,2]
[403987916,1769703041491,-151.0,0.00024,9]
[403987917,1769703041501,-38970.76699162,0.000249,2]
[403987920,1769703041580,-290.39862941,0.00014403,2]
[403987921,1769703041589,-301.1433787,0.00014403,2]
[403987922,1769703041598,-1270.376,0.00019178,2]
[403987923,1769703041608,-4469.69601418,0.000249,2]
[403987924,1769703041617,-163.16,0.00025059,2]
[403987925,1769703041627,-300.2,0.000251,7]
[403987926,1769703041637,-2150.0,0.00025789,2]
[403987927,1769703041647,-1369.0,0.00025789,2]
[403987929,1769703041656,-1000.0,0.00025871,10]
[403987930,1769703041666,-1000.0,0.00025871,10]
[403987931,1769703041675,-1000.0,0.00025871,10]
[403987932,1769703041685,-1041.66666667,0.000259,10]
[403987933,1769703041695,-169.70744721,0.00026172,5]
[403987934,1769703041705,-151.0,0.000262,10]
[403987935,1769703041715,-169.7074472,0.00026981,5]
[403987937,1769703041724,-167.0,0.00027,7]
[403987938,1769703041733,-338.228,0.00028138,18]
[403987939,1769703041742,-1890.6,0.000282,2]
[403987940,1769703041752,-2212.7961759,0.00028349,2]
[403987941,1769703041761,-151.0,0.000284,19]
[403987942,1769703041770,-2150.0,0.00028789,2]
[403987943,1769703041780,-1369.0,0.00028789,2]
[403987945,1769703041789,-180.03960871,0.00028855,2]
[403987946,1769703041798,-665.43,0.000289,14]
[403987947,1769703041808,-710.0,0.00029039,3]
[403987948,1769703041818,-157.0,0.00029945,37]
[403987949,1769703041827,-163.66,0.000301,2]
[403987950,1769703041843,-151.21,0.000301,2]
[403987952,1769703041852,-163.16,0.00030463,2]
[403987953,1769703041862,-151.0,0.000306,13]
[403987954,1769703041872,-161.0,0.00030615,3]
[403987955,1769703041882,-38000.0,0.00030649,10]
[403987956,1769703041891,-38000.0,0.00030658,10]
[403987957,1769703041903,-38000.0,0.00030666,10]
[403987958,1769703041913,-10039.72707706,0.00030675,10]
[403987960,1769703041925,-526.07706661,0.00030675,10]
[403987976,1769703042993,-2e-08,0.00030675,10]
[403987977,1769703043006,-518.91736497,0.00030675,10]
[403987981,1769703043157,-8510.9,0.00030675,10]
[403988061,1769703046971,-500.0,9.547e-05,2]
[403988063,1769703046983,-1297.21331,9.547e-05,2]
[403988064,1769703046995,-450.5933975,9.547e-05,2]
[403988065,1769703047004,-254.074,0.0002,4]
[403988066,1769703047014,-18404.37849134,0.00030675,10]
[403988067,1769703047024,-38000.0,0.00030684,10]
[403988068,1769703047035,-151.0,0.000308,20]
[403988069,1769703047045,-1041.66666667,0.00031,10]
[403988070,1769703047055,-2150.0,0.00031789,2]
[403988072,1769703047065,-1369.0,0.00031789,2]
[403988073,1769703047075,-1041.66666667,0.000319,10]
[403988074,1769703047088,-157.83,0.000321,7]
[403988075,1769703047098,-999.0,0.00032602,120]
[403988076,1769703047107,-153.98,0.000327,2]
[403988077,1769703047117,-1890.6,0.000327,2]
[403988078,1769703047126,-151.0,0.000328,17]
[403988080,1769703047136,-236.38734754,0.00032877,2]
[403988081,1769703047145,-3708.29,0.00032877,10]
[403988082,1769703047159,-6349.92,0.00032877,10]
[403988083,1769703047169,-305.13,0.000329,7]
[403988084,1769703047178,-431.57887456,0.00032998,2]
[403988085,1769703047188,-710.0,0.00033003,11]
[403988086,1769703047199,-6152.11152872,0.00033215,5]
[403988088,1769703047208,-6152.11152872,0.00033215,5]
[403988089,1769703047218,-6152.11152872,0.00033215,5]
[403988090,1769703047228,-6152.11152872,0.00033215,5]
[403988091,1769703047238,-6152.11152872,0.00033215,5]
[403988092,1769703047247,-6152.11152872,0.00033215,5]
[403988093,1769703047257,-6152.11152872,0.00033215,5]
[403988094,1769703047267,-6152.11152872,0.00033215,5]
[403988095,1769703047277,-6152.11152872,0.00033215,5]
[403988097,1769703047286,-665.43,0.000334,30]
[403988098,1769703047296,-151.0,0.00033698,30]
[403988099,1769703047306,-999.0,0.00033698,120]
[403988100,1769703047315,-30188.81,0.000337,7]
[403988101,1769703047324,-217.43292675,0.00033733,2]
[403988102,1769703047334,-26842.1304517,0.00033793,2]
[403988103,1769703047343,-4073.79725905,0.0003381,7]
[403988105,1769703047353,-1255.47787194,0.0003381,7]
[403988106,1769703047362,-2766.47019209,0.0003381,7]
[403988107,1769703047371,-5016.88957628,0.0003381,7]
[403988108,1769703047381,-3376.69261865,0.0003381,7]
[403988109,1769703047391,-4516276.17651106,0.0003381,7]
[403988110,1769703047402,-2384.17017647,0.0003397,7]
[403988111,1769703047411,-8978.44425789,0.00034,14]
[403988113,1769703047421,-1041.66666667,0.00034,7]
[403988114,1769703047431,-160.0,0.00034,7]
[403988115,1769703047443,-6152.11152872,0.00034215,6]
[403988116,1769703047453,-151.0,0.00034246,31]
[403988117,1769703047462,-3183.79818448,0.000343,2]
[403988118,1769703047472,-20647.46,0.000343,30]
[403988119,1769703047482,-151.68786195,0.00034302,2]
[403988120,1769703047492,-151.0,0.00034315,25]
[403988122,1769703047502,-151.0,0.00034315,25]
[403988123,1769703047512,-151.0,0.00034315,25]
[403988124,1769703047522,-151.0,0.00034315,25]
[403988125,1769703047531,-191.745544,0.00034315,25]
[403988126,1769703047541,-1514.756149,0.00034315,28]
[403988127,1769703047551,-1514.756149,0.00034315,28]
[403988128,1769703047560,-1514.756149,0.00034315,28]
[403988130,1769703047569,-1514.756149,0.00034315,28]
[403988131,1769703047579,-1514.756149,0.00034315,28]
[403988132,1769703047588,-1514.756149,0.00034315,28]
[403988133,1769703047598,-1514.756149,0.00034315,28]
[403988134,1769703047607,-1514.756149,0.00034315,28]
[403988135,1769703047617,-1514.756149,0.00034315,28]
[403988136,1769703047626,-1514.756149,0.00034315,28]
[403988137,1769703047635,-1514.756149,0.00034315,28]
[403988139,1769703047644,-1514.756149,0.00034315,28]
[403988140,1769703047654,-1514.756149,0.00034315,28]
[403988141,1769703047664,-1514.756149,0.00034315,28]
[403988142,1769703047673,-1514.756149,0.00034315,28]
[403988143,1769703047683,-1514.756149,0.00034315,28]
[403988144,1769703047692,-1514.756149,0.00034315,28]
[403988145,1769703047702,-1514.756149,0.00034315,28]
[403988146,1769703047711,-1514.756149,0.00034315,28]
[403988148,1769703047722,-1514.756147,0.00034315,28]
[403988149,1769703047732,-16656.84,0.00034364,11]
[403988150,1769703047742,-151.5,0.00034419,2]
[403988151,1769703047751,-151.5272725,0.00034419,2]
[403988152,1769703047760,-267.0,0.00034424,2]
[403988153,1769703047771,-151.51363623,0.00034425,2]
[403988154,1769703047780,-302.99999919,0.00034425,2]
[403988156,1769703047790,-250.0,0.000345,10]
[403988157,1769703047799,-2212.7961759,0.00034552,2]
[403988158,1769703047809,-500.0,0.00034575,5]
[403988159,1769703047818,-250.0,0.000346,10]
[403988160,1769703047828,-633.50646605,0.0003465,2]
[403988161,1769703047841,-241717.68645255,0.00034664,20]
[403988162,1769703047854,-282.92772607,0.00034664,20]
[403988164,1769703047866,-3876.9238186,0.00034664,20]
[403988165,1769703047879,-423.185,0.00034664,20]
[403988166,1769703047890,-1762.42871499,0.00034664,20]
[403988390,1769703064904,-2247.8067075,9.452e-05,2]
[403988573,1769703079551,-10000.01,9.544e-05,2]
[403988578,1769703079839,-10000.01,9.544e-05,2]
[403988584,1769703080203,-10000.01,9.544e-05,2]
[403988589,1769703080460,-10000.01,9.544e-05,2]
[403988593,1769703080702,-10000.01,9.544e-05,2]
[403988597,1769703080974,-10000.01,9.544e-05,2]
[403988601,1769703081190,-10000.01,9.544e-05,2]
[403988607,1769703081511,-10000.01,9.544e-05,2]
[403988611,1769703081734,-10000.01,9.544e-05,2]
[403988615,1769703081975,-10000.01,9.544e-05,2]
[403988796,1769703097662,-10000.01,9.544e-05,2]
[403988801,1769703097891,-10000.01,9.544e-05,2]
[403988803,1769703098167,-10000.01,9.544e-05,2]
[403988808,1769703098530,-10000.01,9.544e-05,2]
[403988811,1769703098691,-10000.01,9.544e-05,2]
[403988815,1769703098852,-10000.01,9.544e-05,2]
[403988818,1769703099019,-4155.43667307,9.544e-05,2]
[403988819,1769703099053,-1689.13665386,9.544e-05,2]
[403989249,1769703131916,-3360.2376359,9.637e-05,2]
[403989520,1769703151809,1832.80396272,9.637e-05,2]
[403989841,1769703175482,-1353.67068555,1e-05,2]
[403989864,1769703177363,-387.70554622,1e-05,2]
[403989873,1769703177933,-8167.20603728,1e-05,2]
[403989895,1769703179398,-168.19511653,1e-05,2]
[403989945,1769703183642,-235.9014135,1e-05,2]
[403989979,1769703186158,-155.67304187,1e-05,2]
[403990006,1769703188178,-158.60326111,1e-05,2]
[403990037,1769703190839,-318.28285642,1e-05,2]
[403990057,1769703192237,-196.71144633,1e-05,2]
[403990100,1769703195294,-229.50827192,1e-05,2]
[403990118,1769703196700,-444.48669006,1e-05,2]
[403990186,1769703201866,-297.40691964,1e-05,2]
[403990206,1769703203265,-180.42655763,1e-05,2]
[403990241,1769703205809,-947.22352103,1e-05,2]
[403990266,1769703207749,-531.82,1e-05,2]
[403990309,1769703210930,-593.61301298,1e-05,2]
[403990350,1769703214010,-154.08,1.019e-05,2]
[403990366,1769703215446,-145.92,1.019e-05,2]
[403990368,1769703215482,-300.0,1.019e-05,2]
[403990371,1769703215694,-300.0,1.019e-05,2]
[403990372,1769703215727,-85.18878033,1.019e-05,2]
[403990392,1769703217373,-214.81121967,1.019e-05,2]
[403990393,1769703217401,-300.0,1.019e-05,2]
[403990394,1769703217430,-300.0,1.019e-05,2]
[403990395,1769703217459,-285.18878033,1.019e-05,2]
[403990423,1769703219829,-14.81121967,1.019e-05,2]
[403990424,1769703219859,-278.42558155,1.019e-05,2]
[403990444,1769703221889,-21.57441845,1.019e-05,2]
[403990445,1769703221919,-300.0,1.019e-05,2]
[403990447,1769703221948,-300.0,1.019e-05,2]
[403990448,1769703221978,-300.0,1.019e-05,2]
[403990449,1769703222011,-280.75406432,1.019e-05,2]
[403990482,1769703224920,-19.24593568,1.019e-05,2]
[403990483,1769703224952,-143.3716496,1.019e-05,2]
[403990516,1769703227427,-156.6283504,1.019e-05,2]
[403990517,1769703227455,-300.0,1.019e-05,2]
[403990519,1769703227482,-111.01968074,1.019e-05,2]
[403990537,1769703229023,-188.98031926,1.019e-05,2]
[403990538,1769703229051,-35.21968074,1.038e-05,2]
[403990562,1769703230715,-300.0,1.038e-05,2]
[403990582,1769703232110,-185.43998297,1.038e-05,2]
[403990603,1769703233556,-79.34033629,1.038e-05,2]
[403990604,1769703233585,-123.39221699,1.142e-05,2]
[403990634,1769703236020,-256.86182513,1.142e-05,2]
[403990656,1769703237711,-252.87938666,1.142e-05,2]
[403990683,1769703239731,-86.86657122,1.142e-05,2]
[403990685,1769703239760,-67.21342878,1.256e-05,2]
[403990701,1769703241221,-210.90587855,1.256e-05,2]
[403990745,1769703244383,-210.09255411,1.839e-05,2]
[403990773,1769703246323,-89.90744589,1.839e-05,2]
[403990775,1769703246349,-80.58746353,1.876e-05,2]
[403990807,1769703248841,-210.1384651,1.876e-05,2]
[403990846,1769703251732,-9.27407137,1.876e-05,2]
[403990848,1769703251759,-241.45166454,1.876e-05,2]
[403990868,1769703253188,-58.54833546,1.876e-05,2]
[403990869,1769703253213,-275.62427453,1.876e-05,2]
[403990883,1769703254368,-24.37572547,1.876e-05,2]
[403990885,1769703254406,-300.0,1.876e-05,2]
[403990886,1769703254443,-300.0,1.876e-05,2]
[403990888,1769703254480,-300.0,1.876e-05,2]
[403990890,1769703254515,-300.0,1.876e-05,2]
[403990891,1769703254551,-300.0,1.876e-05,2]
[403990893,1769703254594,-300.0,1.876e-05,2]
[403990894,1769703254633,-300.0,1.876e-05,2]
[403990896,1769703254671,-300.0,1.876e-05,2]
[403990897,1769703254709,-300.0,1.876e-05,2]
[403990899,1769703254747,-300.0,1.876e-05,2]
[403990900,1769703254784,-300.0,1.876e-05,2]
[403990902,1769703254822,-300.0,1.876e-05,2]
[403990905,1769703255000,-282.43345785,2.023e-05,2]
[403990970,1769703259866,-137.56654215,2.023e-05,2]
[403990972,1769703259890,-587.0,2.225e-05,2]
[403990973,1769703259913,-321.85071279,2.448e-05,2]
[403990995,1769703261449,-219.61789253,2.448e-05,2]
[403991015,1769703262861,-174.4189176,2.448e-05,2]
[403991061,1769703266541,-107.11247708,2.448e-05,2]
[403991062,1769703266565,-44.62272962,2.692e-05,2]
[403991100,1769703269439,-5000.0,2.424e-05,2]
[403991139,1769703272471,-232.20904471,2.692e-05,2]
[403991159,1769703273869,-512.61223158,2.692e-05,2]
[403991202,1769703276906,-362.55599409,2.692e-05,2]
[403991203,1769703276930,-358.57525956,2.962e-05,2]
[403991220,1769703278332,-279.7754916,2.962e-05,2]
[403991251,1769703280763,-389.13960131,2.962e-05,2]
[403991287,1769703283275,-195.82344673,2.962e-05,2]
[403991304,1769703284690,-275.22790684,2.962e-05,2]
[403991324,1769703286113,-114.45829396,2.962e-05,2]
[403991326,1769703286137,-143.52204713,3.01e-05,2]
[403991328,1769703287544,-33.47795287,3.01e-05,2]
[403991329,1769703287568,-597.0,3.258e-05,2]
[403991330,1769703287592,-192.93947731,5.01e-05,2]
[403991331,1769703289573,-11.06052269,5.01e-05,2]
[403991332,1769703289596,-208.9690142,7.01e-05,2]
[403991426,1769703309738,-181.16819013,3.355e-05,2]
[403991536,1769703324755,-243.45148074,3.321e-05,2]
[403991840,1769703445385,-6.54851926,3.321e-05,2]
[403991841,1769703445409,-68.83180987,3.355e-05,2]
[403991842,1769703445434,-22.0309858,7.01e-05,2]
[403991843,1769703445458,-99.44915977,9.01e-05,2]
[403991849,1769703474788,-158.55084023,8.919e-05,2]
[403991850,1769703474816,-12.03777338,9.01e-05,2]
[403991857,1769703489752,-212.10815751,4.649e-05,2]
[403991859,1769703534961,-128.29660909,4.649e-05,2]
[403991860,1769703550374,-177.0,8.829e-05,2]
[403991861,1769703552400,5000.0,8.741e-05,2]
[403991862,1769703574724,5000.0,9.634e-05,2]
[403991865,1769703789766,5000.0,9.438e-05,2]
[403991867,1769703813749,5000.0,9.438e-05,2]
[403991887,1769703836009,0.01,9.438e-05,2]
[403991888,1769703836042,4999.99,9.438e-05,2]
[403991894,1769703882579,4721.83,3e-05,30]
[403991895,1769703882945,4721.83,3.15e-05,30]
[403991896,1769703883305,4721.83,3.3e-05,30]
[403991897,1769703883665,4721.83,3.6e-05,30]
[403991898,1769703884065,3147.88,3e-05,120]
[403991899,1769703884434,3147.88,3.15e-05,120]
[403991900,1769703884790,3147.88,3.3e-05,120]
[403991901,1769703885147,3147.88,3.6e-05,120]
[403991902,1769703891525,6798.44,3e-05,30]
[403991903,1769703891908,2011.78855179,3.15e-05,30]
[403991904,1769703891933,4786.65144821,3.15e-05,30]
[403991905,1769703892276,6798.44,3.3e-05,30]
[403991906,1769703892774,6798.44,3.6e-05,30]
[403991907,1769703893194,4532.29,3e-05,120]
[403991908,1769703893594,4532.29,3.15e-05,120]
[403991909,1769703893954,4532.29,3.3e-05,120]
[403991910,1769703894589,4532.29,3.6e-05,120]
[403991911,1769703899024,7712.32,3e-05,30]
[403991912,1769703899390,7712.32,3.15e-05,30]
[403991913,1769703899747,7712.32,3.3e-05,30]
[403991914,1769703907418,524.03,3e-05,30]
[403991915,1769703907825,524.03,3.15e-05,30]
[403991916,1769703908246,524.03,3.3e-05,30]
[403991917,1769703908664,524.03,3.6e-05,30]
[403991918,1769703909098,349.35,3e-05,120]
[403991919,1769703909491,349.35,3.15e-05,120]
[403991920,1769703909849,349.35,3.3e-05,120]
[403991921,1769703910230,349.35,3.6e-05,120]
[403991922,1769703916198,524.03,3e-05,30]
[403991923,1769703919308,-367.44908831,9.344e-05,2]
[403991924,1769703920250,524.03,3.15e-05,30]
[403991925,1769703921431,349.35,3e-05,120]
[403991926,1769703930099,5000.0,9.344e-05,2]
[403991927,1769703934620,-367.44908831,9.438e-05,2]
[403991928,1769703934660,-554.0,9.538e-05,2]
[403991929,1769703952318,5000.0,9.538e-05,2]
[403991935,1769703984291,5000.0,9.634e-05,2]
[403991936,1769704001248,-316.71343746,9.634e-05,2]
[403991937,1769704007031,0.01,9.634e-05,2]
[403991938,1769704007082,4999.99,9.634e-05,2]
[403991941,1769704029263,5000.0,9.634e-05,2]
[403991942,1769704037699,-439.01760256,9.634e-05,2]
[403991943,1769704037737,-207.93064547,9.634e-05,2]
[403991950,1769704051521,5000.0,0.0001004,2]
[403991952,1769704073752,3706.11350394,0.0001004,2]
[403991953,1769704073791,1293.88649606,0.0001004,2]
[403991955,1769704088868,679.04189717,0.0001004,2]
[403991956,1769704096636,5000.0,0.0001004,2]
[403991957,1769704103853,-296.32429182,0.0001004,2]
[403991958,1769704103893,-500.0,0.0001004,2]
[403991959,1769704103932,-154.90532946,0.0001004,2]
[403991960,1769704103971,-500.0,0.0001004,2]
[403991961,1769704104010,-152.49813814,0.0001004,2]
[403991962,1769704104057,-500.0,0.0001004,2]
[403991963,1769704104108,-500.0,0.0001004,2]
[403991964,1769704104155,-500.0,0.0001004,2]
[403991965,1769704104201,-500.0,0.0001004,2]
[403991966,1769704104242,-500.0,0.0001004,2]
[403991967,1769704104286,-500.0,0.0001004,2]
[403991968,1769704104329,-292.55448116,0.0001004,2]
[403991969,1769704104515,-207.44551884,0.0001004,2]
[403991970,1769704104564,-500.0,0.0001004,2]
[403991971,1769704104607,-500.0,0.0001004,2]
[403991972,1769704104652,-500.0,0.0001004,2]
[403991973,1769704104699,-500.0,0.0001004,2]
[403991974,1769704104745,-500.0,0.0001004,2]
[403991975,1769704104793,-500.0,0.0001004,2]
[403991976,1769704104836,-500.0,0.0001004,2]
[403991977,1769704104882,-500.0,0.0001004,2]
[403991978,1769704104924,-191.48062914,0.0001004,2]
[403991979,1769704104966,-500.0,0.0001004,2]
[403991980,1769704105221,-500.0,0.0001004,2]
[403991981,1769704105260,-500.0,0.0001004,2]
[403991982,1769704105302,-500.0,0.0001004,2]
[403991983,1769704105341,-500.0,0.0001004,2]
[403991984,1769704105380,-585.59143333,0.0001004,2]
[403991985,1769704105418,-500.0,0.0001004,2]
[403991986,1769704105458,-500.0,0.0001004,2]
[403991987,1769704105497,-500.0,0.0001004,2]
[403991988,1769704105535,-500.0,0.0001004,2]
[403991989,1769704105574,-328.82713334,0.0001004,2]
[403991990,1769704105906,-171.17286666,0.0001004,2]
[403991991,1769704105949,-500.0,0.0001004,2]
[403991992,1769704105992,-500.0,0.0001004,2]
[403991993,1769704106039,-500.0,0.0001004,2]
[403991994,1769704106082,-500.0,0.0001004,2]
[403991995,1769704106125,-500.0,0.0001004,2]
[403991996,1769704106167,-500.0,0.0001004,2]
[403991997,1769704106210,-500.0,0.0001004,2]
[403991998,1769704106253,-500.0,0.0001004,2]
[403991999,1769704106294,-500.0,0.0001004,2]
[403992000,1769704106336,-157.66426668,0.0001004,2]
[403992001,1769704106415,-342.33573332,0.0001004,2]
[403992002,1769704106461,-500.0,0.0001004,2]
[403992003,1769704106504,-500.0,0.0001004,2]
[403992004,1769704106549,-500.0,0.0001004,2]
[403992005,1769704106593,-500.0,0.0001004,2]
[403992006,1769704106637,-500.0,0.0001004,2]
[403992007,1769704106681,-500.0,0.0001004,2]
[403992008,1769704106726,-500.0,0.0001004,2]
[403992009,1769704106771,-500.0,0.0001004,2]
[403992010,1769704106815,-530.167805,0.0001004,2]
[403992011,1769704107007,-500.0,0.0001004,2]
[403992012,1769704107051,-500.0,0.0001004,2]
[403992013,1769704107094,-500.0,0.0001004,2]
[403992014,1769704107136,-500.0,0.0001004,2]
[403992015,1769704107178,-500.0,0.0001004,2]
[403992016,1769704107221,-500.0,0.0001004,2]
[403992017,1769704107265,-500.0,0.0001004,2]
[403992018,1769704107308,-500.0,0.0001004,2]
[403992019,1769704107352,-500.0,0.0001004,2]
[403992020,1769704107396,-500.0,0.0001004,2]
[403992021,1769704107601,-500.0,0.0001004,2]
[403992022,1769704107645,-500.0,0.0001004,2]
[403992023,1769704107688,-500.0,0.0001004,2]
[403992024,1769704107733,-500.0,0.0001004,2]
[403992025,1769704107777,-500.0,0.0001004,2]
[403992026,1769704107822,-500.0,0.0001004,2]
[403992027,1769704107864,-500.0,0.0001004,2]
[403992028,1769704107908,-500.0,0.0001004,2]
[403992029,1769704107954,-500.0,0.0001004,2]
[403992030,1769704107998,-500.0,0.0001004,2]
[403992031,1769704108192,-500.0,0.0001004,2]
[403992032,1769704108236,-500.0,0.0001004,2]
[403992033,1769704108278,-500.0,0.0001004,2]
[403992034,1769704108321,-500.0,0.0001004,2]
[403992035,1769704108365,-500.0,0.0001004,2]
[403992036,1769704108409,-500.0,0.0001004,2]
[403992037,1769704108455,-500.0,0.0001004,2]
[403992038,1769704108497,-500.0,0.0001004,2]
[403992039,1769704108543,-500.0,0.0001004,2]
[403992040,1769704108588,-500.0,0.0001004,2]
[403992041,1769704110052,-500.0,0.0001004,2]
[403992042,1769704110094,-500.0,0.0001004,2]
[403992043,1769704110135,-500.0,0.0001004,2]
[403992044,1769704110176,-500.0,0.0001004,2]
[403992045,1769704110217,-500.0,0.0001004,2]
[403992046,1769704110257,-500.0,0.0001004,2]
[403992047,1769704110300,-250.0,0.0001004,2]
[403992048,1769704110430,-500.0,0.0001004,2]
[403992049,1769704110473,-500.0,0.0001004,2]
[403992050,1769704110516,-500.0,0.0001004,2]